fUST/lending_fUST_20260609
["ID","MTS","AMOUNT","RATE_DAILY","PERIOD"]
[424470204,1780937449000,-500.0,0.00018904,2]
[424470206,1780937449000,-1380.01,0.00018904,2]
[424470226,1780937449000,-160.0,0.0001911,2]
[424470199,1780937449000,-730.06,0.00018904,2]
[424470205,1780937449000,-530.06,0.00018904,2]
[424470170,1780937449000,-156.33857692,0.00018643,2]
[424470180,1780937449000,-2259.403367,0.000188,2]
[424470181,1780937449000,-404.87847476,0.00018869,2]
[424470172,1780937449000,-357.94266978,0.00018643,2]
[424470173,1780937449000,-825.0,0.0001868,2]
[424470169,1780937449000,-349.75075647,0.00018643,2]
[424470174,1780937449000,-845.0,0.0001868,2]
[424470176,1780937449000,-204.0,0.00018702,2]
[424470178,1780937449000,-156.0,0.00018702,2]
[424470175,1780937449000,-265.0,0.00018702,2]
[424470177,1780937449000,-355.0,0.00018702,2]
[424470179,1780937449000,-5000.0,0.0001875,3]
[424470182,1780937449000,-373.37340927,0.00018869,2]
[424470171,1780937449000,-319.00961302,0.00018643,2]
[424470202,1780937449000,-500.0,0.00018904,2]
[424470187,1780937449000,-500.0,0.00018904,2]
[424470195,1780937449000,-9671.73,0.00018904,2]
[424470192,1780937449000,-500.0,0.00018904,2]
[424470189,1780937449000,-500.0,0.00018904,2]
[424470186,1780937449000,-500.0,0.00018904,2]
[424470194,1780937449000,-500.0,0.00018904,2]
[424470188,1780937449000,-500.0,0.00018904,2]
[424470190,1780937449000,-500.0,0.00018904,2]
[424470184,1780937449000,-163.0,0.000189,7]
[424470193,1780937449000,-500.0,0.00018904,2]
[424470185,1780937449000,-500.0,0.00018904,2]
[424470196,1780937449000,-500.0,0.00018904,2]
[424470191,1780937449000,-626.32,0.00018904,2]
[424470183,1780937449000,-192.143814,0.00018888,2]
[424470272,1780937450000,-483.23063102,0.00019178,2]
[424470258,1780937450000,-562.50784814,0.00019124,2]
[424470265,1780937450000,-500.0,0.00019178,2]
[424470262,1780937450000,-540.7926253,0.00019124,2]
[424470270,1780937450000,-500.0,0.00019178,2]
[424470276,1780937450000,-500.0,0.00019178,2]
[424470269,1780937450000,-500.0,0.00019178,2]
[424470271,1780937450000,-626.32,0.00019178,2]
[424470268,1780937450000,-500.0,0.00019178,2]
[424470266,1780937450000,-241.65509216,0.00019178,2]
[424470260,1780937450000,-974.41914858,0.00019124,2]
[424470267,1780937450000,-500.0,0.00019178,2]
[424470282,1780937450000,-2009.88,0.00019178,2]
[424470275,1780937450000,-9671.73,0.00019178,2]
[424470274,1780937450000,-500.0,0.00019178,2]
[424470289,1780937450000,-1380.01,0.00019178,2]
[424470288,1780937450000,-530.06,0.00019178,2]
[424470278,1780937450000,-500.0,0.00019178,2]
[424470284,1780937450000,-500.0,0.00019178,2]
[424470285,1780937450000,-313.57,0.00019178,2]
[424470280,1780937450000,-429.8768,0.00019178,2]
[424470279,1780937450000,-730.06,0.00019178,2]
[424470277,1780937450000,-722.56,0.00019178,2]
[424470259,1780937450000,-623.05407995,0.00019124,2]
[424470283,1780937450000,-418.12,0.00019178,2]
[424470273,1780937450000,-500.0,0.00019178,2]
[424470257,1780937450000,-460.24850518,0.00019124,2]
[424470247,1780937450000,-652.05205158,0.00019124,2]
[424470264,1780937450000,-151.0,0.00019155,2]
[424470231,1780937450000,-203.72136095,0.00019124,2]
[424470286,1780937450000,-500.0,0.00019178,2]
[424470232,1780937450000,-279.83664271,0.00019124,2]
[424470233,1780937450000,-461.34991803,0.00019124,2]
[424470234,1780937450000,-592.73013553,0.00019124,2]
[424470236,1780937450000,-450.46332964,0.00019124,2]
[424470239,1780937450000,-167.30509715,0.00019124,2]
[424470237,1780937450000,-156.50332238,0.00019124,2]
[424470238,1780937450000,-491.20075363,0.00019124,2]
[424470240,1780937450000,-157.55166584,0.00019124,2]
[424470243,1780937450000,-558.3401025,0.00019124,2]
[424470241,1780937450000,-421.09896774,0.00019124,2]
[424470261,1780937450000,-1252.41972597,0.00019124,2]
[424470248,1780937450000,-463.48602205,0.00019124,2]
[424470246,1780937450000,-655.46139758,0.00019124,2]
[424470242,1780937450000,-298.16981131,0.00019124,2]
[424470250,1780937450000,-526.00275815,0.00019124,2]
[424470245,1780937450000,-499.34303689,0.00019124,2]
[424470251,1780937450000,-152.14848987,0.00019124,2]
[424470249,1780937450000,-480.22981181,0.00019124,2]
[424470253,1780937450000,-501.23892771,0.00019124,2]
[424470263,1780937450000,-534.92431815,0.00019139,2]
[424470256,1780937450000,-479.97504607,0.00019124,2]
[424470252,1780937450000,-456.98597559,0.00019124,2]
[424470255,1780937450000,-485.44611233,0.00019124,2]
[424470254,1780937450000,-461.83253958,0.00019124,2]
[424470244,1780937450000,-455.49806667,0.00019124,2]
[424470281,1780937450000,-377.24,0.00019178,2]
[424470235,1780937450000,-584.22231305,0.00019124,2]
[424470291,1780937450000,-560.11,0.00019178,2]
[424470321,1780937450000,-218.453294,0.00019178,2]
[424470322,1780937450000,-218.453294,0.00019178,2]
[424470318,1780937450000,-218.453294,0.00019178,2]
[424470324,1780937450000,-218.453294,0.00019178,2]
[424470323,1780937450000,-218.453294,0.00019178,2]
[424470319,1780937450000,-218.453294,0.00019178,2]
[424470329,1780937450000,-266.407533,0.00019178,2]
[424470340,1780937450000,-266.407533,0.00019178,2]
[424470339,1780937450000,-266.407533,0.00019178,2]
[424470328,1780937450000,-266.407533,0.00019178,2]
[424470341,1780937450000,-266.407533,0.00019178,2]
[424470336,1780937450000,-266.407533,0.00019178,2]
[424470327,1780937450000,-218.453292,0.00019178,2]
[424470332,1780937450000,-266.407533,0.00019178,2]
[424470337,1780937450000,-266.407533,0.00019178,2]
[424470331,1780937450000,-266.407533,0.00019178,2]
[424470335,1780937450000,-266.407533,0.00019178,2]
[424470338,1780937450000,-266.407533,0.00019178,2]
[424470330,1780937450000,-266.407533,0.00019178,2]
[424470334,1780937450000,-266.407533,0.00019178,2]
[424470342,1780937450000,-266.407533,0.00019178,2]
[424470346,1780937450000,-266.407533,0.00019178,2]
[424470343,1780937450000,-266.407533,0.00019178,2]
[424470344,1780937450000,-266.407533,0.00019178,2]
[424470345,1780937450000,-266.407533,0.00019178,2]
[424470287,1780937450000,-500.0,0.00019178,2]
[424470333,1780937450000,-266.407533,0.00019178,2]
[424470325,1780937450000,-218.453294,0.00019178,2]
[424470347,1780937450000,-266.407537,0.00019178,2]
[424470320,1780937450000,-218.453294,0.00019178,2]
[424470326,1780937450000,-218.453294,0.00019178,2]
[424470300,1780937450000,-605.61,0.00019178,2]
[424470302,1780937450000,-500.0,0.00019178,2]
[424470301,1780937450000,-741.25,0.00019178,2]
[424470290,1780937450000,-500.0,0.00019178,2]
[424470296,1780937450000,-701.8,0.00019178,2]
[424470292,1780937450000,-500.0,0.00019178,2]
[424470293,1780937450000,-1265.64,0.00019178,2]
[424470295,1780937450000,-2681.41,0.00019178,2]
[424470298,1780937450000,-500.0,0.00019178,2]
[424470297,1780937450000,-1512.15,0.00019178,2]
[424470299,1780937450000,-500.0,0.00019178,2]
[424470313,1780937450000,-218.453294,0.00019178,2]
[424470294,1780937450000,-796.01,0.00019178,2]
[424470304,1780937450000,-151.0,0.00019178,2]
[424470317,1780937450000,-218.453294,0.00019178,2]
[424470312,1780937450000,-218.453294,0.00019178,2]
[424470311,1780937450000,-218.453294,0.00019178,2]
[424470308,1780937450000,-218.453294,0.00019178,2]
[424470310,1780937450000,-218.453294,0.00019178,2]
[424470307,1780937450000,-270.236276,0.00019178,2]
[424470309,1780937450000,-218.453294,0.00019178,2]
[424470306,1780937450000,-151.0,0.00019178,2]
[424470315,1780937450000,-218.453294,0.00019178,2]
[424470314,1780937450000,-218.453294,0.00019178,2]
[424470303,1780937450000,-500.0,0.00019178,2]
[424470305,1780937450000,-151.0,0.00019178,2]
[424470316,1780937450000,-218.453294,0.00019178,2]
[424470390,1780937451000,-500.0,0.00019452,2]
[424470385,1780937451000,-607.31771215,0.00019419,2]
[424470382,1780937451000,-218.48148273,0.00019355,2]
[424470387,1780937451000,-201.29141074,0.00019421,2]
[424470383,1780937451000,-14966.84792424,0.000194,7]
[424470381,1780937451000,-168.192738,0.00019294,2]
[424470384,1780937451000,-768.57031478,0.000194,7]
[424470391,1780937451000,-500.0,0.00019452,2]
[424470393,1780937451000,-500.0,0.00019452,2]
[424470380,1780937451000,-191.70417869,0.00019187,2]
[424470386,1780937451000,-560.0601139,0.00019419,2]
[424470392,1780937451000,-500.0,0.00019452,2]
[424470388,1780937451000,-6113.0771406,0.00019422,2]
[424470405,1780937451000,-500.0,0.00019452,2]
[424470394,1780937451000,-626.32,0.00019452,2]
[424470397,1780937451000,-9671.73,0.00019452,2]
[424470399,1780937451000,-722.56,0.00019452,2]
[424470398,1780937451000,-500.0,0.00019452,2]
[424470396,1780937451000,-500.0,0.00019452,2]
[424470395,1780937451000,-500.0,0.00019452,2]
[424470402,1780937451000,-2009.88,0.00019452,2]
[424470403,1780937451000,-500.0,0.00019452,2]
[424470400,1780937451000,-500.0,0.00019452,2]
[424470401,1780937451000,-730.06,0.00019452,2]
[424470375,1780937451000,-524.62613471,0.00019187,2]
[424470406,1780937451000,-530.06,0.00019452,2]
[424470389,1780937451000,-500.0,0.00019452,2]
[424470370,1780937451000,-573.5024822,0.00019187,2]
[424470358,1780937451000,-281.07824201,0.00019186,2]
[424470371,1780937451000,-583.55899929,0.00019187,2]
[424470349,1780937451000,-572.40715979,0.00019186,2]
[424470353,1780937451000,-573.78914518,0.00019186,2]
[424470348,1780937451000,-716.69,0.00019178,2]
[424470350,1780937451000,-564.49439964,0.00019186,2]
[424470351,1780937451000,-313.12065242,0.00019186,2]
[424470352,1780937451000,-486.29407435,0.00019186,2]
[424470363,1780937451000,-475.95781784,0.00019186,2]
[424470354,1780937451000,-342.44573147,0.00019186,2]
[424470355,1780937451000,-477.11517867,0.00019186,2]
[424470357,1780937451000,-597.34261813,0.00019186,2]
[424470359,1780937451000,-633.52081433,0.00019186,2]
[424470365,1780937451000,-599.90139986,0.00019186,2]
[424470366,1780937451000,-592.48641871,0.00019186,2]
[424470376,1780937451000,-312.67715383,0.00019187,2]
[424470360,1780937451000,-453.43320684,0.00019186,2]
[424470364,1780937451000,-464.01392569,0.00019186,2]
[424470361,1780937451000,-627.6962372,0.00019186,2]
[424470407,1780937451000,-1380.01,0.00019452,2]
[424470362,1780937451000,-537.56711723,0.00019186,2]
[424470368,1780937451000,-450.00269156,0.00019186,2]
[424470378,1780937451000,-478.51441953,0.00019187,2]
[424470379,1780937451000,-536.91400467,0.00019187,2]
[424470373,1780937451000,-488.22763704,0.00019187,2]
[424470369,1780937451000,-457.01364333,0.00019187,2]
[424470374,1780937451000,-479.73180836,0.00019187,2]
[424470372,1780937451000,-328.8907929,0.00019187,2]
[424470367,1780937451000,-541.99851914,0.00019186,2]
[424470377,1780937451000,-182.96500214,0.00019187,2]
[424470356,1780937451000,-368.14922994,0.00019186,2]
[424470408,1780937451000,-439.04365906,0.00019452,2]
[424470404,1780937451000,-500.0,0.00019452,2]
[424470410,1780937451000,-500.0,0.00019452,2]
[424470446,1780937451000,-154.39327006,0.00019486,2]
[424470442,1780937451000,-631.64845161,0.00019486,2]
[424470445,1780937451000,-236.08101675,0.00019486,2]
[424470441,1780937451000,-419.08970243,0.00019486,2]
[424470447,1780937451000,-299.35522928,0.00019486,2]
[424470448,1780937451000,-744.45347001,0.00019486,2]
[424470444,1780937451000,-596.33962261,0.00019486,2]
[424470451,1780937451000,-607.33075556,0.00019486,2]
[424470454,1780937451000,-247.18182344,0.00019486,2]
[424470453,1780937451000,-665.79071586,0.00019486,2]
[424470452,1780937451000,-166.68918735,0.00019486,2]
[424470459,1780937451000,-617.98136273,0.00019486,2]
[424470455,1780937451000,-161.07368407,0.00019486,2]
[424470463,1780937451000,-304.29697974,0.00019486,2]
[424470462,1780937451000,-214.13199019,0.00019486,2]
[424470456,1780937451000,-873.94853011,0.00019486,2]
[424470458,1780937451000,-161.99623816,0.00019486,2]
[424470464,1780937451000,-609.31463412,0.00019486,2]
[424470461,1780937451000,-640.30641575,0.00019486,2]
[424470411,1780937451000,-1265.64,0.00019452,2]
[424470460,1780937451000,-166.38106863,0.00019486,2]
[424470466,1780937451000,-647.2614831,0.00019486,2]
[424470468,1780937451000,-613.66467358,0.00019486,2]
[424470465,1780937451000,-615.77671945,0.00019486,2]
[424470469,1780937451000,-750.01046418,0.00019486,2]
[424470467,1780937451000,-639.96672809,0.00019486,2]
[424470470,1780937451000,-830.73877327,0.00019486,2]
[424470443,1780937451000,-221.44041179,0.00019486,2]
[424470440,1780937451000,-777.25030737,0.00019486,2]
[424470457,1780937451000,-166.10967451,0.00019486,2]
[424470450,1780937451000,-273.1521365,0.00019486,2]
[424470438,1780937451000,-313.00664476,0.00019486,2]
[424470412,1780937451000,-796.01,0.00019452,2]
[424470409,1780937451000,-560.11,0.00019452,2]
[424470414,1780937451000,-701.8,0.00019452,2]
[424470425,1780937451000,-325.98253048,0.00019483,2]
[424470415,1780937451000,-1512.15,0.00019452,2]
[424470416,1780937451000,-500.0,0.00019452,2]
[424470424,1780937451000,-181.40687144,0.00019482,2]
[424470422,1780937451000,-716.69,0.00019452,2]
[424470419,1780937451000,-741.25,0.00019452,2]
[424470418,1780937451000,-605.61,0.00019452,2]
[424470417,1780937451000,-500.0,0.00019452,2]
[424470423,1780937451000,-162.0,0.00019476,2]
[424470420,1780937451000,-500.0,0.00019452,2]
[424470413,1780937451000,-2681.41,0.00019452,2]
[424470427,1780937451000,-162.83977003,0.00019483,2]
[424470421,1780937451000,-500.0,0.00019452,2]
[424470449,1780937451000,-178.25142734,0.00019486,2]
[424470433,1780937451000,-790.30684737,0.00019486,2]
[424470436,1780937451000,-176.06189773,0.00019486,2]
[424470428,1780937451000,-635.43171134,0.00019486,2]
[424470435,1780937451000,-778.96308407,0.00019486,2]
[424470434,1780937451000,-241.14682666,0.00019486,2]
[424470432,1780937451000,-194.93699373,0.00019486,2]
[424470430,1780937451000,-559.67328543,0.00019486,2]
[424470426,1780937451000,-158.3543799,0.00019483,2]
[424470429,1780937451000,-407.4427219,0.00019486,2]
[424470437,1780937451000,-600.61777285,0.00019486,2]
[424470431,1780937451000,-615.13322405,0.00019486,2]
[424470439,1780937451000,-177.64426486,0.00019486,2]
[424470477,1780937452000,-459.34763194,0.000195,2]
[424470475,1780937452000,-168.79257549,0.00019487,2]
[424470474,1780937452000,-209.77802048,0.00019487,2]
[424470471,1780937452000,-654.93433817,0.00019486,2]
[424470473,1780937452000,-1669.89296797,0.00019486,2]
[424470472,1780937452000,-1299.22553144,0.00019486,2]
[424470476,1780937452000,-398009.82865376,0.000195,2]
[424470479,1780937452000,-600.0,0.00013971,2]
[424470478,1780937452000,-2354.3652928,0.000195,2]
[424470485,1780937452000,-86.11572453,0.0001726,2]
[424470484,1780937452000,-500.0,0.00016986,2]
[424470480,1780937452000,-720.0,0.00015368,2]
[424470482,1780937452000,-444.0,0.00016712,2]
[424470483,1780937452000,-864.0,0.00016905,2]
[424470481,1780937452000,-56.0,0.00016712,2]
[424470486,1780937623000,155.0,7.17e-05,2]
[424470487,1780937674000,-5000.0,8.088e-05,2]
[424470488,1780937727000,-151.0,8.086e-05,2]
[424470490,1780937738000,-149.0,8.086e-05,2]
[424470491,1780937791000,-151.0,8.087e-05,2]
[424470492,1780937802000,-349.0,8.087e-05,2]
[424470493,1780937855000,-500.0,8.086e-05,2]
[424470494,1780937909000,-14224.42391756,8.086e-05,2]
[424470497,1780937962000,151.0,7.844e-05,2]
[424470496,1780937962000,-529.33408013,8.087e-05,2]
[424470498,1780937973000,-4470.66591987,8.087e-05,2]
[424470500,1780938026000,-500.0,8.085e-05,2]
[424470501,1780938053000,-288.96289384,8.085e-05,2]
[424470502,1780938069000,-500.0,8.085e-05,2]
[424470503,1780938087000,-2380.17751766,8.087e-05,2]
[424470504,1780938104000,-500.0,8.086e-05,2]
[424470505,1780938121000,-376.56137132,8.086e-05,2]
[424470506,1780938138000,-500.0,8.086e-05,2]
[424470508,1780938155000,-500.0,8.086e-05,2]
[424470509,1780938336000,-571.25116149,8.084e-05,2]
[424470510,1780938336000,-428.74883851,8.084e-05,2]
[424470513,1780938340000,-286.24651553,8.084e-05,2]
[424470512,1780938340000,-571.25116149,8.084e-05,2]
[424470511,1780938340000,-142.50232298,8.084e-05,2]
[424470516,1780938358000,-143.74419255,8.084e-05,2]
[424470514,1780938358000,-285.00464596,8.084e-05,2]
[424470515,1780938358000,-571.25116149,8.084e-05,2]
[424470517,1780938393000,-427.50696894,8.084e-05,2]
[424470518,1780938393000,-571.25116149,8.084e-05,2]
[424470519,1780938393000,-428.74883851,8.084e-05,2]
[424470522,1780938416000,-473.02390819,8.083e-05,2]
[424470521,1780938416000,-526.97609181,8.083e-05,2]
[424470525,1780938420000,-419.07172457,8.083e-05,2]
[424470524,1780938420000,-526.97609181,8.083e-05,2]
[424470523,1780938420000,-53.95218362,8.083e-05,2]
[424470534,1780938446000,-473.02390819,8.083e-05,2]
[424470533,1780938446000,-526.97609181,8.083e-05,2]
[424470532,1780938446000,-107.90436724,8.083e-05,2]
[424470535,1780938500000,-258.69,8.081e-05,2]
[424470537,1780938553000,-258.7,8.081e-05,2]
[424470536,1780938553000,-258.69,8.081e-05,2]
[424470539,1780938553000,-482.61,8.082e-05,2]
[424470538,1780938553000,-258.69,8.081e-05,2]
[424470552,1780938589000,-1000.0,8.082e-05,2]
[424470553,1780938606000,-2580.85912572,8.082e-05,2]
[424470564,1780938630000,151.0,7.84e-05,2]
[424470585,1780938631000,-323.8449,8.082e-05,2]
[424470652,1780938638000,-500.0,8.082e-05,2]
[424470649,1780938638000,-500.0,8.082e-05,2]
[424470658,1780938638000,-500.0,8.082e-05,2]
[424470659,1780938638000,-500.0,8.082e-05,2]
[424470660,1780938638000,-500.0,8.082e-05,2]
[424470651,1780938638000,-500.0,8.082e-05,2]
[424470656,1780938638000,-500.0,8.082e-05,2]
[424470653,1780938638000,-500.0,8.082e-05,2]
[424470670,1780938638000,-500.0,8.082e-05,2]
[424470654,1780938638000,-500.0,8.082e-05,2]
[424470657,1780938638000,-500.0,8.082e-05,2]
[424470662,1780938638000,-500.0,8.082e-05,2]
[424470661,1780938638000,-500.0,8.082e-05,2]
[424470668,1780938638000,-500.0,8.082e-05,2]
[424470672,1780938638000,-500.0,8.082e-05,2]
[424470669,1780938638000,-500.0,8.082e-05,2]
[424470650,1780938638000,-500.0,8.082e-05,2]
[424470655,1780938638000,-500.0,8.082e-05,2]
[424470645,1780938638000,-587.65613713,8.082e-05,2]
[424470638,1780938638000,-492.6046878,8.082e-05,2]
[424470641,1780938638000,-500.0,8.082e-05,2]
[424470628,1780938638000,-176.1551,8.082e-05,2]
[424470630,1780938638000,-500.0,8.082e-05,2]
[424470629,1780938638000,-500.0,8.082e-05,2]
[424470633,1780938638000,-500.0,8.082e-05,2]
[424470631,1780938638000,-500.0,8.082e-05,2]
[424470632,1780938638000,-500.0,8.082e-05,2]
[424470635,1780938638000,-500.0,8.082e-05,2]
[424470634,1780938638000,-500.0,8.082e-05,2]
[424470636,1780938638000,-500.0,8.082e-05,2]
[424470637,1780938638000,-500.0,8.082e-05,2]
[424470671,1780938638000,-500.0,8.082e-05,2]
[424470640,1780938638000,-500.0,8.082e-05,2]
[424470643,1780938638000,-500.0,8.082e-05,2]
[424470644,1780938638000,-500.0,8.082e-05,2]
[424470642,1780938638000,-500.0,8.082e-05,2]
[424470639,1780938638000,-500.0,8.082e-05,2]
[424470648,1780938638000,-500.0,8.082e-05,2]
[424470646,1780938638000,-500.0,8.082e-05,2]
[424470663,1780938638000,-500.0,8.082e-05,2]
[424470647,1780938638000,-500.0,8.082e-05,2]
[424470664,1780938638000,-500.0,8.082e-05,2]
[424470689,1780938638000,-12446.37092783,8.087e-05,2]
[424470693,1780938638000,-166.0925,8.169e-05,2]
[424470692,1780938638000,-5000.0,8.087e-05,2]
[424470691,1780938638000,-2619.82248234,8.087e-05,2]
[424470697,1780938638000,-179.73395,8.518e-05,2]
[424470690,1780938638000,-5000.0,8.087e-05,2]
[424470701,1780938638000,-210.68197961,9.661e-05,2]
[424470711,1780938638000,-180.86967678,0.00013248,2]
[424470695,1780938638000,-334.87673568,8.219e-05,2]
[424470710,1780938638000,-500.0,0.00012871,2]
[424470700,1780938638000,-162.65893777,9.17e-05,2]
[424470703,1780938638000,-720.0,0.00011065,2]
[424470704,1780938638000,-12446.37092781,0.00011629,2]
[424470708,1780938638000,-276.27,0.00012329,2]
[424470705,1780938638000,-864.0,0.00012172,2]
[424470707,1780938638000,-331.52,0.00012329,2]
[424470706,1780938638000,-180.83,0.00012329,2]
[424470673,1780938638000,-514.82485756,8.082e-05,2]
[424470702,1780938638000,-600.0,0.00010059,2]
[424470699,1780938638000,-268.42330102,8.913e-05,2]
[424470709,1780938638000,-203.81,0.0001266,2]
[424470678,1780938638000,-514.82485756,8.082e-05,2]
[424470666,1780938638000,-507.01503251,8.082e-05,2]
[424470674,1780938638000,-514.82485756,8.082e-05,2]
[424470680,1780938638000,-514.82485756,8.082e-05,2]
[424470677,1780938638000,-514.82485756,8.082e-05,2]
[424470686,1780938638000,-525.00000001,8.082e-05,2]
[424470698,1780938638000,-20038.4378102,8.913e-05,2]
[424470676,1780938638000,-514.82485756,8.082e-05,2]
[424470667,1780938638000,-500.0,8.082e-05,2]
[424470675,1780938638000,-514.82485756,8.082e-05,2]
[424470685,1780938638000,-525.00000001,8.082e-05,2]
[424470679,1780938638000,-514.82485756,8.082e-05,2]
[424470681,1780938638000,-514.82485756,8.082e-05,2]
[424470682,1780938638000,-514.82485756,8.082e-05,2]
[424470683,1780938638000,-514.82485756,8.082e-05,2]
[424470688,1780938638000,-500.0,8.087e-05,2]
[424470696,1780938638000,-500.0,8.219e-05,2]
[424470694,1780938638000,-155.0,8.17e-05,2]
[424470687,1780938638000,-500.0,8.087e-05,2]
[424470665,1780938638000,-500.0,8.082e-05,2]
[424470746,1780938639000,-230.53746461,0.000154,2]
[424470762,1780938639000,-500.0,0.00016438,2]
[424470752,1780938639000,-332.54190596,0.000157,2]
[424470750,1780938639000,-332.54190596,0.000156,2]
[424470745,1780938639000,-332.54190596,0.000153,2]
[424470768,1780938639000,-501.55313358,0.00016438,2]
[424470739,1780938639000,-768.57031478,0.00015096,2]
[424470742,1780938639000,-230.22,0.00015109,3]
[424470740,1780938639000,-230.53746461,0.000151,2]
[424470753,1780938639000,-690.71,0.00015893,3]
[424470743,1780938639000,-12446.37092781,0.00015272,2]
[424470741,1780938639000,-332.54190596,0.000151,2]
[424470751,1780938639000,-230.53746461,0.000157,2]
[424470765,1780938639000,-404.20875778,0.00016438,2]
[424470755,1780938639000,-1000.0,0.00016201,2]
[424470759,1780938639000,-152.20252063,0.00016438,2]
[424470756,1780938639000,-492.0,0.00016201,2]
[424470754,1780938639000,-1000.0,0.000162,5]
[424470758,1780938639000,-500.0,0.00016438,2]
[424470760,1780938639000,-500.32655012,0.00016438,2]
[424470757,1780938639000,-456.74478365,0.00016438,2]
[424470764,1780938639000,-615.78,0.00016438,2]
[424470763,1780938639000,-500.26862976,0.00016438,2]
[424470766,1780938639000,-500.0,0.00016438,2]
[424470767,1780938639000,-500.0,0.00016438,2]
[424470744,1780938639000,-230.53746461,0.000153,2]
[424470761,1780938639000,-500.0,0.00016438,2]
[424470738,1780938639000,-160.0,0.00015096,2]
[424470721,1780938639000,-1000.0,0.00013699,2]
[424470747,1780938639000,-332.54190596,0.000154,2]
[424470769,1780938639000,-500.0,0.00016438,2]
[424470712,1780938639000,-1000.0,0.00013389,2]
[424470714,1780938639000,-500.0,0.00013698,2]
[424470713,1780938639000,-500.0,0.00013549,2]
[424470715,1780938639000,-500.0,0.00013698,2]
[424470716,1780938639000,-500.0,0.00013698,2]
[424470717,1780938639000,-500.0,0.00013698,2]
[424470718,1780938639000,-552.77780552,0.00013698,2]
[424470725,1780938639000,-444.0,0.00013837,2]
[424470720,1780938639000,-199.388035,0.00013699,2]
[424470724,1780938639000,-186.0,0.00013837,2]
[424470723,1780938639000,-3625.0,0.00013836,2]
[424470719,1780938639000,-18605.8226978,0.00013699,2]
[424470722,1780938639000,-539.806,0.00013836,2]
[424470727,1780938639000,-150.334,0.00014388,2]
[424470728,1780938639000,-247.108,0.00014388,2]
[424470726,1780938639000,-255.64621193,0.00014226,2]
[424470729,1780938639000,-249.07,0.00014388,2]
[424470733,1780938639000,-528.07228931,0.00014652,2]
[424470731,1780938639000,-284.454,0.00014388,2]
[424470732,1780938639000,-500.0,0.00014652,2]
[424470734,1780938639000,-1000.0,0.00014728,2]
[424470735,1780938639000,-244.0,0.00014728,2]
[424470730,1780938639000,-150.534,0.00014388,2]
[424470737,1780938639000,-23876.67850998,0.00015,2]
[424470748,1780938639000,-217.963,0.00015582,2]
[424470749,1780938639000,-230.53746461,0.000156,2]
[424470736,1780938639000,-197.94206597,0.00014737,2]
[424470770,1780938639000,-569.06118537,0.00016438,2]
[424470788,1780938639000,-500.0,0.00016438,2]
[424470773,1780938639000,-500.0,0.00016438,2]
[424470803,1780938639000,-500.34930765,0.00016438,2]
[424470804,1780938639000,-557.9200899,0.00016438,2]
[424470801,1780938639000,-500.67249456,0.00016438,2]
[424470808,1780938639000,-500.0,0.00016438,2]
[424470819,1780938639000,-500.0,0.00016438,2]
[424470818,1780938639000,-467.04699506,0.00016438,2]
[424470807,1780938639000,-500.0,0.00016438,2]
[424470809,1780938639000,-500.0,0.00016438,2]
[424470813,1780938639000,-186.6447693,0.00016438,2]
[424470810,1780938639000,-500.34479323,0.00016438,2]
[424470816,1780938639000,-492.02476187,0.00016438,2]
[424470811,1780938639000,-500.0,0.00016438,2]
[424470815,1780938639000,-559.50915861,0.00016438,2]
[424470814,1780938639000,-500.0,0.00016438,2]
[424470817,1780938639000,-500.0,0.00016438,2]
[424470822,1780938639000,-500.0,0.00016438,2]
[424470824,1780938639000,-565.46014727,0.00016438,2]
[424470823,1780938639000,-500.0,0.00016438,2]
[424470825,1780938639000,-500.0,0.00016438,2]
[424470821,1780938639000,-500.0,0.00016438,2]